bitfinex-derivatives/quotes_BTCF0:USTF0_20251118
["timestamp","ask_amount","ask_price","bid_price","bid_amount"]
[1763450150752,0.0393994,89813.0,89800.0,0.01312]
[1763450150753,1.55946786,89812.0,89800.0,0.01312]
[1763450151054,0.03970285,89807.0,89800.0,0.01312]
[1763450151268,0.02584772,89806.0,89805.0,0.04249]
[1763450152352,0.02684772,89806.0,89805.0,0.04249]
[1763450153354,0.02784772,89806.0,89805.0,0.04249]
[1763450153755,0.02584772,89806.0,89805.0,0.04249]
[1763450153958,0.02784772,89806.0,89805.0,0.04249]
[1763450154157,0.02772295,89806.0,89805.0,0.04249]
[1763450154356,0.02772213,89806.0,89805.0,0.04249]
[1763450154960,0.89618957,89812.0,89811.0,0.04249]
[1763450155161,0.92191316,89812.0,89811.0,0.04249]
[1763450156257,0.89618957,89812.0,89811.0,0.04249]
[1763450157155,0.89718957,89812.0,89811.0,0.04249]
[1763450157764,0.89818957,89812.0,89811.0,0.04249]
[1763450158863,0.00208957,89812.0,89811.0,0.04249]
[1763450159660,0.00208957,89812.0,89810.0,0.01482803]
[1763450159661,0.00016702,89820.0,89819.0,0.04461]
[1763450160168,0.00089702,89820.0,89819.0,0.04461]
[1763450160767,0.00189702,89820.0,89819.0,0.04461]
[1763450161154,0.8971,89837.0,89835.0,0.04461]
[1763450161356,0.02571045,89836.0,89835.0,0.04461]
[1763450162559,0.02671045,89836.0,89835.0,0.04461]
[1763450163471,0.001,89836.0,89835.0,0.04461]
[1763450163670,0.02672014,89836.0,89835.0,0.04461]
[1763450166668,0.02672014,89836.0,89827.0,0.00016702]
[1763450166868,0.00999999,89830.0,89790.0,0.01263]
[1763450167066,0.05937829,89833.0,89790.0,0.01263]
[1763450167067,0.29455345,89800.0,89790.0,0.01263]
[1763450167262,0.02572014,89799.0,89790.0,0.03592]
[1763450167461,0.29455345,89800.0,89790.0,0.01263]
[1763450167462,0.02572014,89798.0,89790.0,0.01263]
[1763450167766,0.03971473,89796.0,89790.0,0.01263]
[1763450167970,0.03971473,89791.0,89790.0,0.01263]
[1763450168270,0.06543487,89791.0,89790.0,0.01263]
[1763450168571,0.06543487,89791.0,89780.0,0.01263]
[1763450168772,0.23726725,89790.0,89780.0,0.01263]
[1763450169075,0.02572014,89789.0,89780.0,0.01263]
[1763450169965,0.06543487,89789.0,89780.0,0.01263]
[1763450170159,0.06543487,89789.0,89770.0,0.01263]
[1763450170160,0.02572014,89788.0,89770.0,0.01263]
[1763450170365,0.21154711,89780.0,89770.0,0.01263]
[1763450170564,0.02572014,89779.0,89770.0,0.01263]
[1763450171177,0.06543487,89779.0,89760.0,0.01272561]
[1763450171372,0.13708015,89778.0,89760.0,0.01272561]
[1763450171574,0.03971473,89774.0,89760.0,0.01272561]
[1763450171774,0.02572014,89773.0,89760.0,0.01272561]
[1763450172077,0.02572014,89772.0,89760.0,0.01272561]
[1763450172274,0.02572014,89771.0,89760.0,0.01272561]
[1763450172472,0.02572014,89770.0,89769.0,0.04461]
[1763450172675,0.001,89779.0,89772.0,0.01263]
[1763450172876,0.001,89773.0,89772.0,0.05724]
[1763450173171,0.02692902,89773.0,89772.0,0.05724]
[1763450174270,0.02592902,89773.0,89772.0,0.05724]
[1763450174577,1.10864711,89780.0,89777.0,0.02329]
[1763450174778,0.02591304,89779.0,89777.0,0.02329]
[1763450174980,0.02591304,89778.0,89772.0,0.01263]
[1763450175177,0.02591304,89777.0,89772.0,0.01263]
[1763450175380,0.02591304,89777.0,89760.0,0.01272561]
[1763450175381,0.02591304,89776.0,89760.0,0.01272561]
[1763450175676,0.03971473,89772.0,89760.0,9.561e-05]
[1763450175864,0.03971473,89761.0,89727.0,0.00986]
[1763450176069,0.21154711,89737.0,89708.0,0.0098]
[1763450176269,0.21154711,89730.0,89727.0,0.01263]
[1763450176469,0.21171423,89737.0,89727.0,0.01263]
[1763450176673,0.21171423,89737.0,89736.0,0.01263]
[1763450176873,0.00025527,89737.0,89736.0,0.03592]
[1763450177070,0.00025527,89737.0,89736.0,0.05724]
[1763450180572,0.00025527,89737.0,89736.0,0.01263]
[1763450180772,0.00025527,89737.0,89727.0,0.01263]
[1763450180981,0.00025527,89737.0,89736.0,0.01326]
[1763450180982,0.21180238,89737.0,89736.0,0.01326]
[1763450181283,0.00025527,89737.0,89736.0,0.05586]
[1763450182572,0.93681473,89760.0,89759.0,0.0426]
[1763450182771,0.03971473,89782.0,89760.0,0.01545803]
[1763450182981,0.00073267,89770.0,89769.0,0.0426]
[1763450183171,0.04592267,89770.0,89748.0,0.01326]
[1763450183376,0.04519,89751.0,89722.0,0.08947658]
[1763450183674,0.00877,89765.0,89749.0,0.0426]
[1763450183675,0.00073267,89750.0,89749.0,0.0426]
[1763450184786,0.04519,89749.0,89735.0,0.00016712]
[1763450184982,0.04519,89749.0,89740.0,0.00219803]
[1763450185780,0.00173267,89750.0,89740.0,0.00219803]
[1763450185781,0.02328,89741.0,89740.0,0.00219803]
[1763450186282,0.04519,89736.0,89735.0,0.00016712]
[1763450187178,0.04519,89736.0,89712.0,0.01326]
[1763450187383,0.21227978,89730.0,89700.0,0.01326]
[1763450187582,0.21154711,89720.0,89700.0,0.01545803]
[1763450187890,0.01347,89726.0,89700.0,0.01545803]
[1763450187891,0.00073267,89710.0,89700.0,0.00219803]
[1763450188077,0.00073267,89710.0,89709.0,0.04262]
[1763450189177,0.00016712,89718.0,89717.0,0.04262]
[1763450190173,0.8914,89748.0,89720.0,0.00219803]
[1763450190486,0.29758472,89747.0,89720.0,0.00219803]
[1763450190691,0.2716,89747.0,89720.0,0.00219803]
[1763450191272,0.2716,89747.0,89725.0,0.00016712]
[1763450191273,0.00016712,89742.0,89725.0,0.00016712]
[1763450191473,0.22501711,89740.0,89725.0,0.00016712]
[1763450191878,0.02239,89731.0,89730.0,0.00219803]
[1763450192072,0.00016712,89742.0,89730.0,0.04481803]
[1763450193078,0.03971473,89762.0,89760.0,0.00106]
[1763450193281,0.07887477,89778.0,89740.0,0.01363]
[1763450193282,0.02239,89770.0,89769.0,0.00053]
[1763450193586,0.02239,89770.0,89750.0,0.00219803]
[1763450193587,0.04465,89770.0,89750.0,0.21154711]
[1763450193885,0.04465,89770.0,89750.0,0.21374514]
[1763450194090,0.00016712,89769.0,89768.0,0.00053]
[1763450194387,0.00016712,89769.0,89768.0,0.00106]
[1763450195380,0.03999311,89806.0,89770.0,0.00219803]
[1763450195592,0.00027838,89806.0,89794.0,0.00074]
[1763450195793,0.00027838,89806.0,89800.0,0.00219803]
[1763450195975,0.00027838,89806.0,89805.0,0.00074]
[1763450196377,0.02266838,89806.0,89800.0,0.00219803]
[1763450196591,0.02239,89801.0,89800.0,0.00219803]
[1763450197289,0.00027838,89806.0,89800.0,0.00219803]
[1763450197489,0.00027838,89806.0,89805.0,0.00074]
[1763450199192,0.04465,89801.0,89800.0,0.00219803]
[1763450199692,0.04465,89801.0,89797.0,0.00016703]
[1763450199693,0.04465,89798.0,89797.0,0.00016703]
[1763450200694,0.00027838,89806.0,89805.0,0.00074]
[1763450201691,0.01347,89805.0,89804.0,0.00074]
[1763450201884,0.00027838,89806.0,89805.0,0.00074]
[1763450204391,0.02239,89801.0,89800.0,0.00219803]
[1763450204583,0.00027838,89806.0,89800.0,0.00219803]
[1763450204584,0.00027838,89806.0,89805.0,0.00074]
[1763450206692,0.21154711,89840.0,89805.0,0.00074]
[1763450206693,0.00027826,89846.0,89820.0,0.00999999]
[1763450206897,0.00027826,89846.0,89836.0,0.21154711]
[1763450207081,0.02239,89841.0,89840.0,0.00219803]
[1763450207398,0.04465,89841.0,89840.0,0.00219803]
[1763450207604,0.04465,89841.0,89798.0,0.1114943]
[1763450207889,0.00027826,89846.0,89820.0,0.21354711]
[1763450207890,0.01347,89835.0,89820.0,0.21354711]
[1763450208082,0.04465,89826.0,89825.0,0.21154711]
[1763450208891,0.00016703,89828.0,89820.0,0.002]
[1763450208892,0.04465,89821.0,89820.0,0.002]
[1763450209294,0.04465,89821.0,89811.0,0.00016703]
[1763450209295,0.01347,89820.0,89811.0,0.00016703]
[1763450210694,0.04465,89812.0,89811.0,0.00016703]
[1763450212396,0.04465,89812.0,89762.0,0.01104129]
[1763450212596,0.04465,89791.0,89790.0,0.21154711]
[1763450212802,0.04465,89791.0,89790.0,0.00219803]
[1763450213485,0.01347,89805.0,89790.0,0.00219803]
[1763450213686,0.00016703,89799.0,89795.0,0.21154711]
[1763450214003,0.00016703,89799.0,89790.0,0.00319803]
[1763450214604,0.00016703,89799.0,89790.0,0.00219803]
[1763450214793,0.00016703,89799.0,89795.0,0.001]
[1763450215705,0.02239,89796.0,89795.0,0.001]
[1763450216295,0.02239,89796.0,89790.0,0.00419803]
[1763450216598,0.04465,89791.0,89790.0,0.00419803]
[1763450216804,0.04465,89791.0,89790.0,0.00319803]
[1763450217008,0.5478,89817.0,89790.0,0.00319803]
[1763450217190,0.03971473,89849.0,89807.0,0.42309422]
[1763450217398,0.04537,89831.0,89820.0,0.21374514]
[1763450217695,0.04537,89821.0,89820.0,0.00219803]
[1763450219201,0.02263,89821.0,89820.0,0.00119803]
[1763450219394,0.00016703,89829.0,89828.0,0.1114576]
[1763450219796,0.00016703,89829.0,89819.0,0.42309422]
[1763450220004,0.00016703,89829.0,89820.0,0.0019307]
[1763450220209,0.00016703,89829.0,89821.0,0.1114663]
[1763450220797,0.00016703,89829.0,89820.0,0.0019307]
[1763450221198,0.00016703,89829.0,89821.0,0.1114663]
[1763450222301,0.00016703,89829.0,89820.0,0.0019307]
[1763450222506,0.00016703,89829.0,89821.0,0.001]
[1763450223008,0.00016703,89829.0,89820.0,0.0019307]
[1763450223410,0.00016703,89829.0,89827.0,0.1114576]
[1763450223909,0.00016703,89829.0,89823.0,0.1114629]
[1763450224203,0.00016703,89829.0,89820.0,0.0019307]
[1763450224512,0.04537,89821.0,89820.0,0.0019307]
[1763450225406,0.04537,89813.0,89812.0,0.00016703]
[1763450226504,0.03971473,89845.0,89820.0,0.00999999]
[1763450226804,0.00027826,89846.0,89839.0,0.1114428]
[1763450226805,0.001,89840.0,89839.0,0.1114428]
[1763450227000,0.00027826,89846.0,89843.0,0.111439]
[1763450227203,0.02918,89880.0,89853.0,0.1114255]
[1763450227405,0.01358,89880.0,89855.0,0.21154711]
[1763450227602,0.00016693,89868.0,89861.0,0.1114161]
[1763450227800,0.00016693,89868.0,89855.0,0.21154711]
[1763450227801,0.00016693,89868.0,89866.0,0.1114098]
[1763450228005,0.01358,89880.0,89879.0,0.1113943]
[1763450228210,0.05329473,89908.0,89866.0,0.1114098]
[1763450228211,0.2021,89908.0,89884.0,0.1113876]
[1763450228412,0.001,89890.0,89884.0,0.21154711]
[1763450228903,0.001,89890.0,89880.0,0.29654805]
[1763450229111,0.04537,89881.0,89880.0,0.29654805]
[1763450229296,0.04537,89881.0,89880.0,0.0019307]
[1763450230507,0.001,89881.0,89880.0,0.0019307]
[1763450230907,0.04637,89881.0,89880.0,0.0019307]
[1763450231604,0.04737,89881.0,89880.0,0.0019307]
[1763450232610,0.04537,89879.0,89878.0,0.00016693]
[1763450233808,0.04637,89879.0,89878.0,0.00016693]
[1763450234003,0.04737,89879.0,89878.0,0.00016693]
[1763450234198,0.04537,89870.0,89869.0,0.29461735]
[1763450234398,0.04637,89870.0,89860.0,0.29654805]
[1763450238808,0.02363,89870.0,89860.0,0.29654805]
[1763450239204,0.001,89870.0,89861.0,0.1114166]
[1763450239405,0.001,89870.0,89860.0,0.40796475]
[1763450240104,0.001,89870.0,89860.0,0.29654805]
[1763450242606,0.001,89870.0,89856.0,0.00016693]
[1763450242607,0.0444,89857.0,89856.0,0.00016693]
[1763450242811,0.0444,89841.0,89840.0,0.29461735]
[1763450243011,0.0444,89841.0,89840.0,0.0019307]
[1763450245312,0.00016693,89849.0,89840.0,0.0019307]
[1763450245507,0.03971473,89880.0,89876.0,0.1113969]
[1763450245710,0.01267,89908.0,89880.0,0.00999999]
[1763450245912,0.01267,89908.0,89900.0,0.0019307]
[1763450246107,0.03971473,89944.0,89908.0,0.1113581]
[1763450246314,0.001,89920.0,89910.0,0.0019307]
[1763450246516,0.001,89920.0,89910.0,0.29654805]
[1763450247713,0.001,89920.0,89911.0,0.1113546]
[1763450247911,0.001,89920.0,89910.0,0.29654805]
[1763450248615,0.002,89920.0,89910.0,0.29654805]
[1763450249004,0.003,89920.0,89911.0,0.1113546]
[1763450249209,0.003,89920.0,89917.0,0.1113461]
[1763450249419,0.00016683,89924.0,89917.0,0.1113461]
[1763450249720,0.00016683,89924.0,89920.0,0.1113424]
[1763450251318,0.01267,89950.0,89935.0,0.1113249]
[1763450251513,0.01267,89950.0,89908.0,0.17126254]
[1763450251514,0.01267,89950.0,89944.0,0.1113131]
[1763450251714,0.01267,89964.0,89945.0,0.1113122]
[1763450251923,0.01267,89964.0,89954.0,0.29461735]
[1763450252607,0.00027788,89966.0,89954.0,0.29461735]
[1763450252813,0.00027788,89966.0,89960.0,0.00219803]
[1763450253117,0.001,89964.0,89960.0,0.00219803]
[1763450253912,0.00127788,89966.0,89960.0,0.00219803]
[1763450254320,0.001,89964.0,89960.0,0.00219803]
[1763450255709,0.002,89964.0,89960.0,0.00219803]
[1763450257920,0.0222,89964.0,89960.0,0.00219803]
[1763450259119,0.00011029,89968.0,89960.0,0.00219803]
[1763450259329,0.00027776,90006.0,89970.0,0.00999999]
[1763450259517,0.04552,89972.0,89971.0,0.26411288]
[1763450259818,0.01322,89955.0,89947.0,0.00010007]
[1763450260024,0.01322,89955.0,89951.0,0.1113051]
[1763450260220,0.01322,89955.0,89950.0,0.00219803]
[1763450261226,0.001,89968.0,89952.0,0.111303]
[1763450261433,0.001,89968.0,89960.0,0.00219803]
[1763450261723,0.01322,89970.0,89960.0,0.00219803]
[1763450262117,0.01322,89970.0,89965.0,0.1112872]
[1763450262321,0.01322,89970.0,89960.0,0.11349093]
[1763450262520,0.01322,89970.0,89963.0,0.111289]
[1763450262919,0.01322,89970.0,89967.0,0.1112848]
[1763450263123,0.01322,89985.0,89960.0,0.01219802]
[1763450263331,0.01322,89985.0,89981.0,0.1112674]
[1763450263528,0.01322,90000.0,89975.0,0.29461735]
[1763450263742,0.01322,90000.0,89964.0,0.00016674]
[1763450263743,0.01322,89985.0,89980.0,0.29681538]
[1763450263919,0.01322,89985.0,89980.0,0.00219803]
[1763450264825,0.04552,89981.0,89980.0,0.00219803]
[1763450265327,0.02266,89981.0,89980.0,0.00219803]
[1763450265525,0.04552,89981.0,89980.0,0.00219803]
[1763450265716,0.02266,89965.0,89964.0,0.00016674]
[1763450265922,0.04552,89965.0,89964.0,0.00016674]
[1763450269028,0.01322,89968.0,89964.0,0.00016674]
[1763450269228,0.01322,89985.0,89969.0,0.1112823]
[1763450269424,0.01322,89985.0,89975.0,0.29461735]
[1763450269625,0.01322,89985.0,89975.0,0.40589255]
[1763450269831,0.01322,89985.0,89975.0,0.29461735]
[1763450270228,0.04552,89976.0,89975.0,0.29461735]
[1763450270424,0.04552,89971.0,89970.0,0.00219803]
[1763450272928,0.04552,89971.0,89964.0,0.00016674]
[1763450272929,0.04552,89965.0,89964.0,0.00016674]
[1763450273323,0.04552,89948.0,89947.0,0.00010007]
[1763450273530,0.02266,89948.0,89947.0,0.00010007]
[1763450273829,0.04552,89948.0,89947.0,0.00010007]
[1763450275323,0.0187935,89948.0,89947.0,0.00010007]
[1763450275519,0.0414535,89948.0,89947.0,0.00010007]
[1763450277325,0.01322,89955.0,89950.0,0.00219803]
[1763450277520,0.04478,89954.0,89953.0,0.05975271]
[1763450277937,0.04478,89954.0,89950.0,0.00219803]
[1763450278128,0.04478,89954.0,89953.0,0.05975233]
[1763450278330,0.04478,89954.0,89950.0,0.00219803]
[1763450278528,0.04478,89951.0,89950.0,0.00219803]
[1763450280731,0.05803,89940.0,89936.0,0.07962458]
[1763450280928,0.05803,89940.0,89930.0,0.37424193]
[1763450281127,0.05803,89940.0,89930.0,0.29461735]
[1763450281932,0.05803,89940.0,89919.0,0.09961181]
[1763450281933,0.05803,89940.0,89927.0,0.07962458]
[1763450282130,0.04478,89920.0,89919.0,0.07962458]
[1763450282330,0.00010753,89920.0,89919.0,0.04092]
[1763450282526,0.02331753,89920.0,89919.0,0.02046]
[1763450282732,0.04488753,89920.0,89910.0,0.29461735]
[1763450283032,0.04488753,89920.0,89910.0,0.29681538]
[1763450283233,0.04488753,89920.0,89919.0,0.002]
[1763450283837,0.04488753,89920.0,89919.0,0.003]
[1763450284342,0.04488753,89920.0,89919.0,0.0428626]
[1763450284543,0.04478,89907.0,89906.0,0.00016674]
[1763450284839,0.00010753,89920.0,89910.0,0.00219803]
[1763450285043,0.02321,89911.0,89910.0,0.29681538]
[1763450285238,0.04478,89911.0,89910.0,0.00219803]
[1763450285438,0.04378,89907.0,89906.0,0.00016674]
[1763450285741,0.04478,89904.0,89903.0,0.01393]
[1763450286037,0.04478,89899.0,89898.0,0.00013206]
[1763450286240,0.0448636,89899.0,89898.0,0.00013206]
[1763450286634,0.0448636,89899.0,89880.0,0.29461735]
[1763450286635,0.04378,89887.0,89880.0,0.29461735]
[1763450287233,0.04278,89887.0,89878.0,0.00016684]
[1763450287939,0.04378,89879.0,89878.0,0.00016684]
[1763450288139,0.04389064,89879.0,89878.0,0.00016684]
[1763450288541,0.04389064,89879.0,89860.0,0.29461735]
[1763450288741,0.04389064,89879.0,89869.0,0.2110139]
[1763450288937,0.04478,89870.0,89869.0,0.2110139]
[1763450289142,0.00011064,89879.0,89870.0,0.00219803]
[1763450289338,0.04478,89887.0,89886.0,0.00088936]
[1763450289746,0.04478,89887.0,89886.0,0.001]
[1763450290248,0.04490082,89887.0,89886.0,0.001]
[1763450290439,0.04590082,89887.0,89886.0,0.001]
[1763450290642,0.04590082,89887.0,89878.0,0.00016684]
[1763450290846,0.04590082,89887.0,89880.0,0.00219803]
[1763450292043,0.02433082,89887.0,89880.0,0.01599803]
[1763450292251,0.00112082,89887.0,89886.0,0.02191]
[1763450292546,0.00112082,89887.0,89886.0,0.04376]
[1763450292843,0.04590082,89887.0,89878.0,0.00016684]
[1763450293152,0.02433082,89887.0,89880.0,0.01599803]
[1763450293539,0.02333082,89887.0,89880.0,0.01599803]
[1763450293733,0.02433082,89887.0,89880.0,0.01599803]
[1763450294750,0.02433082,89887.0,89886.0,0.02191]
[1763450295340,0.02333082,89887.0,89886.0,0.02191]
[1763450296047,0.00112082,89887.0,89886.0,0.04376]
[1763450297748,1.51325,89940.0,89894.0,0.05756]
[1763450297951,0.04478,89916.0,89915.0,0.2110139]
[1763450298343,0.04478,89916.0,89910.0,0.00219803]
[1763450298546,0.04478,89911.0,89910.0,0.00219803]
[1763450300153,0.04578,89911.0,89910.0,0.00219803]
[1763450300349,0.04473,89903.0,89902.0,0.00016684]
[1763450301855,0.00016684,89919.0,89902.0,0.04460684]
[1763450302149,0.04402,89911.0,89910.0,0.00219803]
[1763450302342,0.00016684,89919.0,89902.0,0.00016684]
[1763450302343,0.04402,89903.0,89902.0,0.00016684]
[1763450303453,0.00116684,89919.0,89902.0,0.04460684]
[1763450303652,0.00116684,89919.0,89918.0,0.04444]
[1763450304247,0.0128,89947.0,89921.0,0.01285]
[1763450304448,0.04402,89941.0,89940.0,0.00219803]
[1763450305847,0.04402,89941.0,89932.0,0.00016684]
[1763450305848,0.04402,89933.0,89932.0,0.00016684]
[1763450306155,0.04402,89921.0,89920.0,0.2110139]
[1763450306365,0.04402,89921.0,89920.0,0.00219803]
[1763450309057,0.13803085,89992.0,89920.0,0.00219803]
[1763450309058,0.03971473,89961.0,89959.0,0.04338]
[1763450309253,0.05937829,89992.0,89965.0,0.04338]
[1763450309561,0.01317,89999.0,89980.0,0.03204616]
[1763450309868,0.04446,89990.0,89989.0,0.2110139]
[1763450310056,0.00016674,89998.0,89990.0,0.00219803]
[1763450311874,0.00116674,89998.0,89990.0,0.00219803]
[1763450312257,0.00216674,89998.0,89990.0,0.00219803]
[1763450312561,0.04446,89982.0,89981.0,0.00016674]
[1763450314362,0.04546,89982.0,89981.0,0.00016674]
[1763450314962,0.001,89982.0,89981.0,0.04354674]
[1763450315162,0.00016674,89998.0,89986.0,0.111261]
[1763450315357,0.00016674,89998.0,89981.0,0.00016674]
[1763450315358,0.00016674,89998.0,89990.0,0.00219803]
[1763450316565,0.04446,89982.0,89981.0,0.00016674]
[1763450318056,0.04546,89982.0,89981.0,0.00016674]
[1763450318461,0.0222,89959.0,89950.0,0.02962323]
[1763450318775,0.01351,89970.0,89950.0,0.00219803]
[1763450318776,0.04446,89951.0,89950.0,0.00219803]
[1763450319071,0.0222,89951.0,89950.0,0.00219803]
[1763450319276,0.01351,89970.0,89950.0,0.00219803]
[1763450319566,0.00016674,89959.0,89950.0,0.00219803]
[1763450319764,0.00016674,89959.0,89950.0,0.00319803]
[1763450320462,0.00016674,89959.0,89950.0,0.00419803]
[1763450321169,0.00016674,89959.0,89950.0,0.00319803]
[1763450321362,0.00016674,89959.0,89950.0,0.00219803]
[1763450322170,0.04446,89951.0,89950.0,0.00219803]
[1763450323072,0.0222,89951.0,89950.0,0.00219803]
[1763450323271,0.00016674,89959.0,89950.0,0.04557803]
[1763450323676,0.04446,89951.0,89950.0,0.00219803]
[1763450324968,0.04446,89951.0,89950.0,0.00319803]
[1763450325770,0.00016674,89959.0,89950.0,0.02373803]
[1763450330076,0.04446,89951.0,89950.0,0.02373803]
[1763450330371,0.03993611,89951.0,89950.0,0.03182126]
[1763450330570,0.03993611,89951.0,89950.0,0.00219803]
[1763450330762,0.03993611,89951.0,89950.0,0.03182126]
[1763450331179,0.03993611,89951.0,89950.0,0.00219803]
[1763450332169,0.04446,89943.0,89942.0,0.00016674]
[1763450332372,0.04446,89937.0,89935.0,0.03957687]
[1763450332676,0.04446,89921.0,89920.0,0.2110139]
[1763450332873,0.0222,89915.0,89914.0,0.02154]
[1763450333174,0.00887,89947.0,89914.0,0.04338]
[1763450333472,0.04446,89921.0,89920.0,0.21321193]
[1763450333680,0.04446,89921.0,89920.0,0.00219803]
[1763450334472,0.00016674,89939.0,89920.0,0.04557803]
[1763450334664,0.04446,89930.0,89929.0,0.2110139]
[1763450334876,0.04446,89930.0,89920.0,0.2110139]
[1763450335071,0.04446,89930.0,89920.0,0.21321193]
[1763450336878,0.00016674,89939.0,89938.0,0.04524]
[1763450337270,0.04292,89957.0,89956.0,0.2110139]
[1763450337578,0.04292,89957.0,89947.0,0.2110139]
[1763450337876,0.04292,89957.0,89950.0,0.00219803]
[1763450338085,0.04292,89957.0,89950.0,0.01505803]
[1763450339380,0.04292,89951.0,89950.0,0.00219803]
[1763450339679,0.00016674,89962.0,89945.0,0.00016674]
[1763450339680,0.04292,89946.0,89945.0,0.00016674]
[1763450340075,0.04292,89931.0,89930.0,0.2110139]
[1763450340278,0.02052831,89931.0,89930.0,0.00219803]
[1763450340475,0.00434,89924.0,89923.0,0.05947757]
[1763450340676,0.00887,89950.0,89920.0,0.00219803]
[1763450340677,0.00868,89921.0,89920.0,0.00219803]
[1763450341178,0.4937,89948.0,89911.0,0.05947757]
[1763450341179,0.00868,89912.0,89911.0,0.05947757]
[1763450341372,0.00668,89911.0,89910.0,0.00219803]
[1763450342076,0.00568,89911.0,89910.0,0.00219803]
[1763450342285,0.00468,89910.0,89903.0,0.00016683]
[1763450342473,0.00452,89904.0,89903.0,0.00016683]
[1763450342783,0.4937,89927.0,89883.0,0.05947757]
[1763450342784,0.0032,89887.0,89883.0,0.05947757]
[1763450342970,1.5,89909.0,89890.0,0.00219803]
[1763450343171,0.0002,89900.0,89899.0,0.2110139]
[1763450343371,1.5,89909.0,89900.0,0.00219803]
[1763450343578,0.0001,89904.0,89903.0,0.0009]
[1763450344277,0.0001,89904.0,89903.0,0.001]
[1763450344670,8.828e-05,89908.0,89903.0,0.001]
[1763450344866,8.828e-05,89908.0,89907.0,0.02206]
[1763450345076,8.828e-05,89908.0,89907.0,0.04524]
[1763450345783,0.00016683,89913.0,89912.0,0.04524]
[1763450347178,0.00016683,89913.0,89910.0,0.01505803]
[1763450347179,0.00016683,89913.0,89910.0,0.00219803]
[1763450348076,0.00016683,89913.0,89912.0,0.02206]
[1763450349475,0.00016683,89913.0,89910.0,0.00219803]
[1763450350484,0.00016683,89913.0,89910.0,0.01505803]
[1763450351384,0.11120001,89912.0,89879.0,0.05947757]
[1763450351582,0.29447282,89910.0,89870.0,0.35395039]
[1763450351784,0.29447282,89910.0,89890.0,0.00219803]
[1763450352083,0.29447282,89910.0,89870.0,0.29447282]
[1763450352084,0.60800001,89909.0,89870.0,0.29447282]
[1763450352388,0.60800001,89909.0,89890.0,0.00219803]
[1763450352584,0.4968,89909.0,89891.0,0.00011169]
[1763450352780,0.2724,89908.0,89891.0,0.00011169]
[1763450353180,0.2724,89908.0,89886.0,0.00127813]
[1763450353484,0.2724,89908.0,89890.0,0.00219803]
[1763450355382,0.2734,89908.0,89886.0,0.00027813]
[1763450355782,0.2734,89908.0,89890.0,0.00219803]
[1763450355982,0.2744,89908.0,89890.0,0.29667085]
[1763450356384,0.2734,89908.0,89890.0,0.00219803]
[1763450356590,0.2744,89908.0,89890.0,0.00219803]
[1763450357184,0.2734,89908.0,89890.0,0.00219803]
[1763450358082,0.2724,89908.0,89890.0,0.00219803]
[1763450358586,0.2734,89908.0,89890.0,0.00219803]
[1763450359691,0.2724,89908.0,89890.0,0.00219803]
[1763450359893,0.2734,89908.0,89890.0,0.00219803]
[1763450360983,0.29447282,89900.0,89886.0,0.00027813]
[1763450361390,0.11124,89899.0,89886.0,0.00027813]
[1763450361588,0.29447282,89900.0,89886.0,0.00027813]
[1763450361788,0.11124,89899.0,89886.0,0.00027813]
[1763450362288,0.29447282,89900.0,89866.0,0.01286]
[1763450362495,0.00016683,89892.0,89870.0,0.00219803]
[1763450362690,0.29447282,89890.0,89870.0,0.00219803]
[1763450362893,0.27212,89891.0,89870.0,0.29667085]
[1763450363589,0.27212,89891.0,89870.0,0.00219803]
[1763450364184,0.79127282,89890.0,89870.0,0.00219803]
[1763450364394,0.29447282,89880.0,89854.0,0.03980856]
[1763450364581,0.29447282,89880.0,89850.0,0.30742324]
[1763450364582,0.79127282,89890.0,89853.0,0.03980856]
[1763450364787,0.00016683,89880.0,89860.0,0.00219803]
[1763450365186,0.00016683,89880.0,89860.0,0.29667085]
[1763450365791,0.27204,89879.0,89860.0,0.29667085]
[1763450365995,0.00016683,89880.0,89879.0,0.02118]
[1763450366500,0.00016683,89880.0,89879.0,0.04274]
[1763450367497,0.00116683,89880.0,89879.0,0.04274]
[1763450371912,0.00108793,89880.0,89879.0,0.04274]
[1763450372201,0.20152,89900.0,89899.0,0.02104]
[1763450373395,0.00081,89893.0,89892.0,0.03465]
[1763450373596,0.00081,89893.0,89892.0,0.05567]
[1763450373797,0.1999,89900.0,89892.0,0.05567]
[1763450373998,0.00162,89893.0,89892.0,0.05567]
[1763450375099,0.2029,89900.0,89892.0,0.05567]
[1763450375798,0.2009,89900.0,89899.0,0.04206]
[1763450376100,0.2009,89900.0,89892.0,0.01361]
[1763450376101,0.00162,89893.0,89892.0,0.03465]
[1763450376403,0.00162,89893.0,89892.0,0.05567]
[1763450377195,0.00162,89893.0,89892.0,0.03465]
[1763450378191,0.00162,89893.0,89891.0,0.00016683]
[1763450378397,0.00162,89892.0,89891.0,0.00016683]
[1763450379605,0.00162,89892.0,89868.0,0.07962458]
[1763450379606,0.00081,89880.0,89879.0,0.03980856]
[1763450379903,0.00162,89872.0,89871.0,0.03980856]
[1763450380101,0.00162,89871.0,89870.0,0.04200659]
[1763450380311,0.00162,89871.0,89870.0,0.00219803]
[1763450380903,0.00162,89871.0,89870.0,0.06326303]
[1763450381308,0.00162,89871.0,89870.0,0.00219803]
[1763450381507,0.00162,89867.0,89866.0,0.05947757]
[1763450381695,0.00016683,89879.0,89865.0,0.04004388]
[1763450381696,0.00162,89866.0,89865.0,0.04004388]
[1763450381903,0.00162,89866.0,89864.0,0.04004388]
[1763450382102,0.00162,89865.0,89864.0,0.04004388]
[1763450382303,0.00162,89865.0,89864.0,0.02104]
[1763450382498,0.00016683,89879.0,89870.0,0.02104]
[1763450382499,0.001,89871.0,89870.0,0.02104]
[1763450382708,0.00181,89871.0,89870.0,0.04425803]
[1763450382907,0.00262,89871.0,89870.0,0.04425803]
[1763450383314,0.00162,89863.0,89862.0,0.04004388]
[1763450383515,0.00162,89862.0,89861.0,0.04004388]
[1763450384012,0.00162,89862.0,89861.0,0.06108388]
[1763450384308,0.00162,89862.0,89861.0,0.02104]
[1763450384802,0.00162,89862.0,89861.0,0.04206]
[1763450385306,0.001,89871.0,89860.0,0.04224191]
[1763450385307,0.00281,89871.0,89870.0,0.05567]
[1763450385503,0.00362,89871.0,89870.0,0.05786803]
[1763450385703,0.00362,89871.0,89870.0,0.01580803]
[1763450386008,0.00262,89871.0,89870.0,0.05786803]
[1763450386214,0.00162,89871.0,89870.0,0.05786803]